bitfinex-derivatives/quotes_SOLF0:USTF0_20230904
["timestamp","ask_amount","ask_price","bid_price","bid_amount"]
[1693845843615,100.75,19.413,19.406,100.75]
[1693845853121,100.75,19.415,19.409,15.46]
[1693845855222,100.75,19.415,19.408,100.75]
[1693845855424,100.75,19.412,19.405,100.75]
[1693845855717,100.75,19.41,19.402,116.21]
[1693845859213,100.75,19.41,19.402,157.73008238]
[1693845859423,100.75,19.41,19.402,142.27008238]
[1693845860921,100.75,19.411,19.403,100.75]
[1693845863927,100.75,19.407,19.399,100.75]
[1693845864225,100.75,19.404,19.399,41.7960865]
[1693845864424,100.75,19.404,19.397,29.09597645]
[1693845865523,100.75,19.404,19.397,71.25457582]
[1693845869329,100.75,19.404,19.397,29.09597645]
[1693845869725,100.75,19.404,19.396,100.75]
[1693845869936,100.75,19.401,19.393,142.93031941]
[1693845870230,100.75,19.401,19.394,15.46]
[1693845871627,100.75,19.404,19.396,100.75]
[1693845871830,100.75,19.407,19.399,100.75]
[1693845876541,22.1698,19.412,19.402,15.46]
[1693845876542,100.75,19.409,19.402,15.46]
[1693845876841,21.07632287,19.418,19.409,15.46]
[1693845876842,100.75,19.416,19.409,15.46]
[1693845883150,100.75,19.417,19.409,100.75]
[1693845885849,0.45454546,19.418,19.412,100.75]
[1693845891657,100.75,19.419,19.412,100.75]
[1693845892257,100.75,19.419,19.412,100.81271802]
[1693845892656,100.75,19.415,19.412,0.06271802]
[1693845896167,100.75,19.415,19.412,0.9015038]
[1693845901669,100.75,19.415,19.412,0.83878578]
[1693845902065,100.75,19.415,19.41,40.23480946]
[1693845902268,100.75,19.411,19.399,100.75]
[1693845902566,100.75,19.407,19.399,141.7922245]
[1693845902771,100.75,19.404,19.395,100.75]
[1693845903163,100.75,19.402,19.394,414.06572894]
[1693845903369,100.75,19.402,19.394,456.03071348]
[1693845903671,100.75,19.402,19.395,277.11472894]
[1693845903968,100.75,19.402,19.394,178.91598454]
[1693845906370,100.75,19.402,19.394,136.951]
[1693845906573,100.75,19.397,19.389,100.75]
[1693845906871,500.0,19.408,19.385,100.75]
[1693845906872,100.75,19.393,19.385,100.75]
[1693845907466,100.75,19.395,19.392,0.37668473]
[1693845907866,110.79,19.398,19.392,0.37668473]
[1693845915579,110.79,19.398,19.386,110.79]
[1693845919377,110.79,19.398,19.386,151.29309278]
[1693845921179,110.79,19.396,19.386,151.29309278]
[1693845923083,110.79,19.396,19.386,40.50309278]
[1693845923282,110.79,19.396,19.383,132.483]
[1693845924380,110.79,19.396,19.383,172.71404692]
[1693845926782,110.79,19.396,19.386,110.79]
[1693845931687,110.79,19.396,19.383,172.71404692]
[1693845932885,0.45454546,19.405,19.383,61.92404692]
[1693845933087,99.74,19.389,19.383,40.23104692]
[1693845933285,500.0,19.398,19.38,30.15833574]
[1693845933286,99.74,19.386,19.38,30.15833574]
[1693845934085,99.74,19.386,19.38,70.71119803]
[1693845934283,99.74,19.386,19.38,30.15833574]
[1693845939790,99.74,19.386,19.378,140.20233229]
[1693845943195,99.74,19.383,19.378,40.46233229]
[1693845943496,99.74,19.383,19.376,99.74]
[1693845945096,99.74,19.386,19.379,99.74]
[1693845951298,99.74,19.385,19.378,127.63239431]
[1693845955502,99.74,19.389,19.383,99.74]
[1693845955702,99.74,19.392,19.385,99.74]
[1693845959903,99.74,19.39,19.383,99.74]
[1693845962916,110.86,19.392,19.382,15.48]
[1693845963119,110.86,19.39,19.382,15.48]
[1693845964618,110.86,19.387,19.378,68.44966984]
[1693845965118,110.86,19.389,19.378,83.92966984]
[1693845968312,110.86,19.389,19.378,68.44966984]
[1693845968518,110.86,19.387,19.378,68.44966984]
[1693845969415,110.86,19.387,19.378,83.92966984]
[1693845969712,110.86,19.387,19.378,68.44966984]
[1693845970116,110.86,19.387,19.378,83.92966984]
[1693845970415,110.86,19.387,19.378,68.44966984]
[1693845971425,110.86,19.387,19.378,83.92966984]
[1693845971624,110.86,19.387,19.378,68.44966984]
[1693845972124,110.86,19.387,19.378,83.92966984]
[1693845972327,110.86,19.387,19.378,68.44966984]
[1693845973526,110.86,19.387,19.378,83.92966984]
[1693845973722,110.86,19.387,19.378,68.44966984]
[1693845974123,110.86,19.387,19.378,83.92966984]
[1693845974323,110.86,19.387,19.378,68.44966984]
[1693845974824,110.86,19.387,19.378,83.92966984]
[1693845975025,110.86,19.387,19.378,68.44966984]
[1693845975524,110.86,19.387,19.378,83.92966984]
[1693845975717,110.86,19.387,19.378,68.44966984]
[1693845976115,110.86,19.387,19.378,83.92966984]
[1693845976322,110.86,19.387,19.378,68.44966984]
[1693845988036,99.82,19.385,19.379,99.82]
[1693845990530,99.82,19.385,19.379,377.17618492]
[1693845990734,99.82,19.385,19.38,277.35618492]
[1693845990929,99.82,19.385,19.379,99.82]
[1693845991133,99.82,19.385,19.379,377.1779271]
[1693845991332,99.82,19.385,19.379,99.82]
[1693845991530,99.82,19.385,19.379,377.17858766]
[1693845991734,99.82,19.385,19.38,277.35858766]
[1693845991926,99.82,19.385,19.379,99.82]
[1693845993042,99.82,19.385,19.378,168.26966984]
[1693845993336,99.82,19.385,19.379,277.35811736]
[1693845995027,99.82,19.385,19.38,277.35811736]
[1693845995227,99.82,19.381,19.378,27.89239431]
[1693845999340,99.82,19.381,19.375,277.39921781]
[1693845999544,99.82,19.381,19.376,277.39921781]
[1693845999732,99.82,19.381,19.377,277.39921781]
[1693845999936,99.82,19.381,19.374,140.5048891]
[1693846000332,99.82,19.381,19.374,155.9848891]
[1693846000542,99.82,19.381,19.375,277.39444165]
[1693846000842,99.82,19.381,19.376,277.39444165]
[1693846001042,99.82,19.381,19.377,277.39444165]
[1693846001341,99.82,19.381,19.374,140.5048891]
[1693846001943,99.82,19.381,19.374,155.9848891]
[1693846002141,99.82,19.381,19.375,277.39368108]
[1693846002441,99.82,19.381,19.376,277.39368108]
[1693846002643,99.82,19.381,19.374,140.5048891]
[1693846002839,99.82,19.381,19.374,155.9848891]
[1693846003142,99.82,19.381,19.375,277.39382132]
[1693846003337,99.82,19.381,19.376,277.39382132]
[1693846003641,99.82,19.381,19.377,277.39382132]
[1693846003940,99.82,19.381,19.374,140.5048891]
[1693846003941,99.82,19.381,19.378,277.39382132]
[1693846004242,99.82,19.379,19.372,99.82]
[1693846004538,99.82,19.379,19.374,15.48]
[1693846004740,99.82,19.379,19.373,9.48119219]
[1693846004741,99.82,19.379,19.372,115.3]
[1693846004941,99.82,19.379,19.374,15.48]
[1693846005142,99.82,19.379,19.372,115.3]
[1693846005342,99.82,19.379,19.374,15.48]
[1693846005539,99.82,19.379,19.372,115.3]
[1693846005743,99.82,19.379,19.374,15.48]
[1693846006044,99.82,19.379,19.372,115.3]
[1693846006243,99.82,19.379,19.374,15.48]
[1693846006446,99.82,19.379,19.372,115.3]
[1693846006645,99.82,19.379,19.374,15.48]
[1693846006944,99.82,19.379,19.372,115.3]
[1693846007144,99.82,19.379,19.374,15.48]
[1693846007345,99.82,19.379,19.372,115.3]
[1693846007545,99.82,19.379,19.374,15.48]
[1693846007744,99.82,19.379,19.372,115.3]
[1693846007945,99.82,19.379,19.374,15.48]
[1693846008143,99.82,19.379,19.372,99.82]
[1693846008341,99.82,19.379,19.374,15.48]
[1693846008537,99.82,19.379,19.372,115.3]
[1693846008742,99.82,19.379,19.374,15.48]
[1693846008947,99.82,19.379,19.372,115.3]
[1693846009241,99.82,19.379,19.374,15.48]
[1693846009541,99.82,19.379,19.372,115.3]
[1693846009749,99.82,19.379,19.374,15.48]
[1693846009949,99.82,19.379,19.372,115.3]
[1693846010150,99.82,19.379,19.374,15.48]
[1693846010349,99.82,19.379,19.372,115.3]
[1693846010549,99.82,19.379,19.374,15.48]
[1693846010848,99.82,19.379,19.372,115.3]
[1693846011049,99.82,19.379,19.374,15.48]
[1693846011249,99.82,19.379,19.372,115.3]
[1693846011451,99.82,19.379,19.374,15.48]
[1693846011646,99.82,19.379,19.372,115.3]
[1693846011946,99.82,19.379,19.374,15.48]
[1693846012151,99.82,19.379,19.372,115.3]
[1693846012348,99.82,19.379,19.374,15.48]
[1693846012542,99.82,19.379,19.372,115.3]
[1693846012854,99.82,19.379,19.374,15.48]
[1693846013149,99.82,19.379,19.372,115.3]
[1693846013350,99.82,19.379,19.374,15.48]
[1693846013547,99.82,19.379,19.372,115.3]
[1693846013748,99.82,19.379,19.374,15.48]
[1693846013948,99.82,19.379,19.372,115.3]
[1693846014149,99.82,19.379,19.374,15.48]
[1693846014352,99.82,19.379,19.372,115.3]
[1693846014544,99.82,19.379,19.374,15.48]
[1693846014846,99.82,19.379,19.372,115.3]
[1693846015047,99.82,19.379,19.374,15.48]
[1693846015246,99.82,19.379,19.372,115.3]
[1693846015445,99.82,19.379,19.374,15.48]
[1693846015750,99.82,19.379,19.372,115.3]
[1693846015951,99.82,19.379,19.374,15.48]
[1693846016150,99.82,19.379,19.372,115.3]
[1693846016350,99.82,19.379,19.374,15.48]
[1693846016650,99.82,19.379,19.372,115.3]
[1693846016849,99.82,19.379,19.374,15.48]
[1693846017049,99.82,19.379,19.372,115.3]
[1693846017248,99.82,19.379,19.374,15.48]
[1693846017450,99.82,19.379,19.372,115.3]
[1693846022756,99.82,19.379,19.374,15.48]
[1693846022951,99.82,19.379,19.372,115.3]
[1693846023149,99.82,19.379,19.374,15.48]
[1693846023348,99.82,19.379,19.372,115.3]
[1693846023552,99.82,19.379,19.374,15.48]
[1693846023848,99.82,19.379,19.372,115.3]
[1693846024055,99.82,19.379,19.374,15.48]
[1693846024254,99.82,19.379,19.372,115.3]
[1693846024459,99.82,19.379,19.374,15.48]
[1693846024659,99.82,19.379,19.372,99.82]
[1693846024660,99.82,19.379,19.372,115.3]
[1693846024855,99.82,19.379,19.374,15.48]
[1693846025057,99.82,19.379,19.372,115.3]
[1693846025254,99.82,19.379,19.374,15.48]
[1693846025455,99.82,19.379,19.372,115.3]
[1693846025757,99.82,19.379,19.374,15.48]
[1693846026056,99.82,19.379,19.372,99.82]
[1693846026057,99.82,19.379,19.372,115.3]
[1693846026254,99.82,19.379,19.374,15.48]
[1693846026461,99.82,19.379,19.372,115.3]
[1693846026659,99.82,19.379,19.374,15.48]
[1693846026860,99.82,19.379,19.372,115.3]
[1693846027061,99.82,19.379,19.374,15.48]
[1693846027363,99.82,19.379,19.372,115.3]
[1693846027562,99.82,19.379,19.374,15.48]
[1693846027861,99.82,19.379,19.372,115.3]
[1693846028061,99.82,19.379,19.374,15.48]
[1693846028361,99.82,19.382,19.376,99.82]
[1693846028760,99.82,19.386,19.379,99.82]
[1693846033168,99.82,19.387,19.38,99.82]
[1693846033771,99.82,19.39,19.383,99.82]
[1693846034870,99.82,19.387,19.38,99.82]
[1693846038070,99.82,19.384,19.378,15.48]
[1693846040975,99.82,19.387,19.38,99.82]
[1693846053091,99.82,19.385,19.38,41.97316821]
[1693846053290,99.82,19.385,19.379,277.37031793]
[1693846053583,99.82,19.385,19.38,277.37031793]
[1693846053788,99.82,19.385,19.378,115.3]
[1693846054992,99.82,19.388,19.382,99.82]
[1693846055489,99.82,19.391,19.385,15.48]
[1693846066203,99.82,19.394,19.388,15.47]
[1693846066597,99.82,19.395,19.388,99.82]
[1693846070404,99.82,19.396,19.389,99.82]
[1693846083004,99.82,19.396,19.388,41.33677152]
[1693846083203,99.82,19.396,19.389,99.82]
[1693846086206,99.82,19.4,19.393,99.82]
[1693846087416,99.82,19.4,19.394,15.47]
[1693846087622,99.82,19.406,19.399,15.47]
[1693846093123,99.82,19.408,19.4,99.82]
[1693846100330,99.82,19.41,19.402,99.82]
[1693846103030,99.82,19.41,19.404,99.82]
[1693846103330,99.82,19.412,19.404,99.82]
[1693846103530,0.45454546,19.411,19.404,99.82]
[1693846104735,99.82,19.409,19.401,99.82]
[1693846107132,99.82,19.403,19.395,99.82]
[1693846107345,0.45454546,19.402,19.395,99.82]
[1693846110238,99.82,19.4,19.392,99.82]
[1693846111534,500.0,19.406,19.395,99.82]
[1693846111535,99.82,19.402,19.395,99.82]
[1693846111835,0.45454546,19.401,19.395,99.82]
[1693846118352,0.79089403,19.4,19.395,99.82]
[1693846123057,0.79089403,19.4,19.396,99.82]
[1693846127262,100.61089403,19.4,19.393,99.82]
[1693846128561,0.79089403,19.4,19.396,99.82]
[1693846131864,0.79089403,19.4,19.389,20.1542]
[1693846132063,0.79089403,19.4,19.395,99.82]
[1693846133063,100.61089403,19.4,19.393,99.82]
[1693846143471,100.61089403,19.4,19.393,140.19938144]
[1693846147468,99.82,19.398,19.391,99.82]
[1693846150373,99.82,19.394,19.387,99.82]
[1693846153078,99.82,19.392,19.385,99.82]
[1693846153877,100.55216269,19.392,19.385,99.82]
[1693846161993,0.73216269,19.392,19.39,99.82]
[1693846162180,0.73216269,19.392,19.383,40.91593604]
[1693846162181,0.73216269,19.392,19.389,99.82]
[1693846162386,99.82,19.396,19.389,99.82]
[1693846163088,99.82,19.397,19.39,99.82]
[1693846164689,99.82,19.397,19.392,0.69820502]
[1693846165286,0.79291502,19.395,19.392,0.69820502]
[1693846173101,100.61291502,19.395,19.392,0.69820502]
[1693846173499,100.61291502,19.395,19.392,0.76098768]
[1693846183110,99.82,19.393,19.392,0.76098768]
[1693846188911,0.79291502,19.395,19.392,0.76098768]
[1693846189114,0.79291502,19.395,19.392,16.23098768]
[1693846190921,100.61291502,19.395,19.392,0.76098768]
[1693846192216,0.79291502,19.395,19.392,0.76098768]
[1693846193121,100.61291502,19.395,19.392,0.76098768]
[1693846199129,99.82,19.393,19.387,42.00103145]
[1693846199324,99.82,19.393,19.386,99.82]
[1693846200322,99.82,19.393,19.386,141.83649484]
[1693846200922,99.82,19.389,19.382,141.96130994]
[1693846201123,99.82,19.387,19.379,99.82]
[1693846201327,99.82,19.384,19.378,15.47]
[1693846203119,99.82,19.384,19.378,99.82]
[1693846213036,99.82,19.386,19.379,99.82]
[1693846222356,99.82,19.385,19.378,155.61356368]
[1693846222646,99.82,19.385,19.378,99.82]
[1693846223049,99.82,19.385,19.379,99.82]
[1693846231757,0.84429611,19.384,19.379,99.82]
[1693846233059,100.66429611,19.384,19.378,15.48]
[1693846233356,100.66429611,19.384,19.378,57.00656007]
[1693846235462,0.84429611,19.384,19.382,15.48]
[1693846248182,99.82,19.387,19.382,15.48]
[1693846252086,119.9557,19.396,19.386,99.82]
[1693846252286,119.9557,19.396,19.389,99.82]
[1693846252783,99.82,19.396,19.389,99.82]
[1693846253583,99.82,19.396,19.391,0.74622202]
[1693846256585,99.82,19.396,19.392,15.48]
[1693846258587,99.82,19.4,19.392,115.3]
[1693846269797,99.82,19.4,19.392,155.89793814]
[1693846274799,99.82,19.401,19.394,99.82]
[1693846280903,99.82,19.402,19.395,99.82]
[1693846294117,99.82,19.4,19.392,99.82]
[1693846296119,99.82,19.397,19.39,99.82]
[1693846296815,99.82,19.394,19.387,99.88279885]
[1693846297419,99.82,19.388,19.387,0.06279885]
[1693846297721,99.82,19.388,19.381,99.82]
[1693846300319,99.82,19.388,19.381,140.07167611]
[1693846300523,99.82,19.388,19.381,99.82]
[1693846303025,99.82,19.387,19.381,99.82]
[1693846305329,99.82,19.385,19.378,121.6713]
[1693846305525,99.82,19.385,19.378,99.82]
[1693846306630,99.82,19.386,19.379,99.82]
[1693846309126,99.82,19.386,19.358,15.48]
[1693846309127,99.82,19.38,19.373,129.17977395]
[1693846309429,99.82,19.38,19.373,99.82]
[1693846311631,99.82,19.377,19.37,99.82]
[1693846312525,99.82,19.377,19.363,15.48]
[1693846312726,99.82,19.377,19.37,99.82]
[1693846313129,21.8242,19.383,19.367,99.82]
[1693846313130,99.82,19.375,19.367,99.82]
[1693846316135,0.76337522,19.373,19.369,0.79069133]
[1693846323038,100.58337522,19.373,19.369,0.79069133]
[1693846328146,99.82,19.37,19.363,99.82]
[1693846329651,99.82,19.366,19.359,99.82]
[1693846333142,99.82,19.364,19.358,99.82]
[1693846333347,99.82,19.362,19.355,99.82]
[1693846336755,99.82,19.36,19.354,15.5]
[1693846337654,99.82,19.363,19.357,15.5]
[1693846343058,99.82,19.364,19.357,99.82]
[1693846350357,99.82,19.364,19.357,115.32]
[1693846352061,99.82,19.37,19.363,99.82]
[1693846353061,99.82,19.371,19.364,99.82]
[1693846360070,99.82,19.368,19.361,99.82]
[1693846360465,99.82,19.368,19.36,31.37341744]
[1693846360466,99.82,19.365,19.36,31.37341744]
[1693846361063,99.82,19.365,19.358,120.5302]
[1693846362671,99.82,19.369,19.362,99.82]
[1693846363773,99.82,19.369,19.363,15.5]
[1693846364373,100.27454546,19.372,19.365,99.82]
[1693846365075,100.27454546,19.372,19.366,15.5]
[1693846365575,99.82,19.372,19.366,15.5]
[1693846366468,99.82,19.372,19.369,0.06285718]
[1693846373474,99.82,19.375,19.369,0.06285718]
[1693846373676,99.82,19.377,19.37,99.82]
[1693846373881,500.0,19.385,19.372,99.82]
[1693846373882,99.82,19.38,19.372,99.82]
[1693846377570,99.82,19.377,19.37,99.82]
[1693846398885,99.82,19.38,19.374,15.49]
[1693846399091,99.82,19.38,19.373,99.82]
[1693846401493,99.82,19.377,19.37,99.82]
[1693846413106,99.82,19.377,19.371,99.82]
[1693846416211,99.82,19.375,19.369,0.06285717]
[1693846420117,99.82,19.375,19.369,15.55285717]
[1693846423225,121.53568881,19.377,19.37,99.82]
[1693846431128,0.45454546,19.384,19.373,99.82]
[1693846431329,99.82,19.38,19.374,15.49]
[1693846437829,99.82,19.383,19.378,15.49]
[1693846438431,99.82,19.387,19.38,99.82]
[1693846442428,24.55016925,19.388,19.382,99.82]
[1693846442733,99.82,19.389,19.382,99.82]
[1693846443130,99.82,19.391,19.383,99.82]
[1693846443328,99.82,19.392,19.385,99.82]
[1693846445137,99.82,19.395,19.388,99.82]
[1693846445932,120.2603,19.398,19.391,99.82]
[1693846446436,99.82,19.398,19.391,99.82]
[1693846449747,99.82,19.395,19.389,99.82]
[1693846452049,20.6156,19.403,19.391,99.82]
[1693846452239,99.82,19.399,19.391,99.82]
[1693846463149,99.82,19.395,19.388,99.82]
[1693846463348,99.82,19.395,19.384,21.6445]
[1693846463349,99.82,19.392,19.385,99.82]
[1693846467150,99.82,19.396,19.389,99.82]
[1693846472649,99.82,19.396,19.382,15.47]
[1693846472853,99.82,19.399,19.392,99.82]
[1693846481762,99.82,19.401,19.394,99.82]
[1693846503068,99.82,19.399,19.392,99.82]
[1693846503469,122.5460137,19.402,19.395,99.82]
[1693846505472,0.45454546,19.403,19.397,99.82]
[1693846511279,99.82,19.404,19.397,99.82]
[1693846518075,140.69055182,19.405,19.397,99.82]
[1693846523079,140.69055182,19.405,19.398,99.82]
[1693846523283,40.87055182,19.405,19.399,99.82]
[1693846523481,0.45454546,19.405,19.399,99.82]
[1693846523683,99.82,19.403,19.396,99.82]
[1693846523985,99.82,19.403,19.397,277.35277401]
[1693846531490,99.82,19.403,19.396,99.82]
[1693846534697,99.82,19.4,19.393,99.82]
[1693846534993,99.82,19.4,19.394,277.35243275]
[1693846538694,99.82,19.403,19.396,99.82]
[1693846538893,25.76655,19.405,19.399,99.82]
[1693846543101,25.76655,19.405,19.401,99.82]
[1693846543395,540.28865979,19.406,19.402,277.27016723]
[1693846543601,540.28865979,19.406,19.401,99.82]
[1693846543902,500.0,19.406,19.401,99.82]
[1693846546901,99.82,19.406,19.399,99.82]
[1693846547101,99.82,19.406,19.4,277.27283767]
[1693846547302,599.82,19.406,19.4,277.27283767]
[1693846548005,99.82,19.406,19.4,277.27283767]
[1693846548398,599.82,19.406,19.4,277.27283767]
[1693846549905,99.82,19.406,19.4,277.27283767]
[1693846550105,599.82,19.406,19.4,277.27283767]
[1693846550905,99.82,19.406,19.4,277.27283767]
[1693846553108,99.82,19.405,19.4,277.27283767]
[1693846556607,99.82,19.408,19.402,15.46]
[1693846557111,99.82,19.408,19.401,99.82]
[1693846558407,99.82,19.408,19.402,15.46]
[1693846558608,500.0,19.406,19.402,15.46]
[1693846559612,99.82,19.408,19.402,15.46]
[1693846560407,500.0,19.406,19.402,15.46]
[1693846561512,99.82,19.408,19.402,15.46]
[1693846562212,99.82,19.408,19.401,99.82]
[1693846562413,99.82,19.405,19.399,15.46]
[1693846562614,99.82,19.405,19.4,277.26841591]
[1693846567413,500.0,19.416,19.4,277.26841591]
[1693846567620,99.82,19.414,19.406,99.82]
[1693846568011,99.82,19.417,19.409,99.82]
[1693846568416,99.82,19.417,19.41,277.13719667]
[1693846568715,99.82,19.42,19.414,15.46]
[1693846568914,99.82,19.42,19.413,99.82]
[1693846572520,99.82,19.42,19.414,15.46]
[1693846573122,99.82,19.419,19.412,15.46]
[1693846576723,99.82,19.42,19.412,99.82]
[1693846583125,99.82,19.421,19.414,99.82]
[1693846583523,99.82,19.421,19.414,15.45]
[1693846585128,133.85678884,19.423,19.417,15.45]
[1693846586927,34.03678884,19.423,19.419,99.82]
[1693846587822,99.82,19.426,19.419,99.82]
[1693846589232,140.78395467,19.429,19.422,99.82]
[1693846589928,99.82,19.426,19.419,99.82]
[1693846590236,133.00815599,19.426,19.419,99.82]
[1693846593136,33.18815599,19.426,19.421,99.82]
[1693846594838,533.18815599,19.426,19.421,99.82]
[1693846595034,99.82,19.425,19.41,21.9675]
[1693846595240,99.82,19.423,19.416,99.82]
[1693846596142,99.82,19.422,19.415,99.82]
[1693846611752,99.82,19.425,19.418,99.82]
[1693846620655,33.18815599,19.426,19.421,99.82]
[1693846631263,0.703813,19.425,19.421,99.82]
[1693846632154,100.523813,19.425,19.418,99.82]
[1693846633156,99.82,19.424,19.417,99.82]
[1693846638772,99.82,19.424,19.418,276.99146668]
[1693846643776,99.82,19.423,19.418,276.99146668]
[1693846653583,133.46270145,19.426,19.419,99.82]
[1693846653785,133.00815599,19.426,19.421,15.45]
[1693846654078,133.00815599,19.426,19.422,276.99146668]
[1693846654385,133.00815599,19.426,19.423,276.99146668]
[1693846654684,133.00815599,19.426,19.424,276.99146668]
[1693846654886,133.00815599,19.426,19.419,99.82]
[1693846655183,133.00815599,19.426,19.421,15.45]
[1693846655382,133.00815599,19.426,19.422,276.97641667]
[1693846655584,133.00815599,19.426,19.423,276.97641667]
[1693846655779,133.00815599,19.426,19.424,276.97641667]
[1693846655981,133.00815599,19.426,19.419,99.82]
[1693846656182,133.00815599,19.426,19.42,276.97653575]
[1693846660798,133.00815599,19.426,19.421,15.45]
[1693846660998,133.00815599,19.426,19.422,276.97653575]
[1693846661195,133.00815599,19.426,19.423,276.97653575]
[1693846661397,133.00815599,19.426,19.424,276.97653575]
[1693846661596,133.00815599,19.426,19.425,276.97653575]
[1693846661997,133.00815599,19.426,19.421,15.45]
[1693846662199,99.82,19.426,19.422,276.97653575]
[1693846662399,100.6177107,19.426,19.423,276.97653575]
[1693846662599,100.6177107,19.426,19.424,276.97653575]
[1693846662799,100.6177107,19.426,19.425,276.97653575]
[1693846663103,0.7977107,19.426,19.425,276.97653575]
[1693846663498,0.7977107,19.426,19.422,276.97653575]
[1693846663699,0.7977107,19.426,19.423,276.97653575]
[1693846664000,0.7977107,19.426,19.424,276.97653575]
[1693846664202,0.7977107,19.426,19.425,276.97653575]
[1693846664504,0.7977107,19.426,19.422,276.97653575]
[1693846664702,0.7977107,19.426,19.423,276.97653575]
[1693846664902,0.7977107,19.426,19.424,276.97653575]
[1693846665202,0.7977107,19.426,19.425,276.97653575]
[1693846665903,0.7977107,19.426,19.422,276.97653575]
[1693846668497,0.7977107,19.426,19.421,276.91519518]
[1693846668706,0.7977107,19.426,19.422,276.91519518]
[1693846668907,0.7977107,19.426,19.423,276.91519518]
[1693846669105,0.7977107,19.426,19.424,276.91519518]
[1693846669408,0.7977107,19.426,19.425,276.91519518]
[1693846669605,0.7977107,19.426,19.42,99.82]
[1693846669810,99.82,19.424,19.417,99.82]
[1693846673206,99.82,19.422,19.415,99.82]
[1693846673408,36.09792165,19.425,19.412,99.82]
[1693846673409,99.82,19.419,19.412,99.82]
[1693846674510,99.82,19.416,19.408,99.82]
[1693846674717,99.82,19.412,19.405,99.88274056]
[1693846677517,99.82,19.41,19.405,0.06274056]
[1693846680920,99.82,19.41,19.406,15.44]
[1693846684521,99.82,19.41,19.405,0.06274056]
[1693846688126,99.82,19.41,19.406,15.44]
[1693846689225,99.82,19.413,19.406,115.26]
[1693846693031,99.82,19.412,19.406,15.44]
[1693846694827,99.82,19.412,19.405,99.88274056]
[1693846695030,99.82,19.409,19.405,0.06274056]
[1693846696525,99.82,19.409,19.402,36.2999]
[1693846696728,99.82,19.409,19.402,15.44]
[1693846697625,99.82,19.407,19.399,115.28]
[1693846701035,99.82,19.407,19.405,0.06274056]
[1693846703139,99.82,19.408,19.405,0.06274056]
[1693846708142,99.82,19.408,19.406,15.46]
[1693846708339,33.51543879,19.414,19.406,15.46]
[1693846708340,99.82,19.411,19.406,15.46]
[1693846713243,99.82,19.409,19.406,15.46]
[1693846713644,99.82,19.412,19.406,15.46]
[1693846718252,0.45454546,19.415,19.41,99.82]
[1693846718458,99.82,19.42,19.414,15.46]